bitfinex-derivatives/quotes_BTCF0:USTF0_20250828
["timestamp","ask_amount","ask_price","bid_price","bid_amount"]
[1756378170173,2.62686779,113030.0,113020.0,0.37176]
[1756378170678,3.04525021,113030.0,113020.0,0.37176]
[1756378171176,2.62686779,113030.0,113020.0,0.37176]
[1756378173684,2.62686779,113030.0,113020.0,0.33679]
[1756378173983,3.04525021,113030.0,113020.0,0.33679]
[1756378174184,2.62686779,113030.0,113020.0,0.33679]
[1756378175082,2.62686779,113030.0,113020.0,0.2798]
[1756378176184,3.04525021,113030.0,113020.0,0.2798]
[1756378179184,2.62686779,113030.0,113020.0,0.2798]
[1756378179584,2.62686779,113030.0,113020.0,0.29559]
[1756378181783,3.04525021,113030.0,113020.0,0.29559]
[1756378182183,3.04525021,113030.0,113020.0,0.33596]
[1756378182383,2.62686779,113030.0,113020.0,0.3917]
[1756378182579,2.62686779,113030.0,113020.0,0.36855]
[1756378182786,2.62686779,113030.0,113020.0,0.33596]
[1756378186285,3.04525021,113030.0,113020.0,0.33596]
[1756378186486,3.04525021,113030.0,113020.0,0.3167]
[1756378187184,3.04525021,113030.0,113020.0,0.29559]
[1756378187384,3.29525021,113030.0,113020.0,0.001]
[1756378192800,3.29525021,113030.0,113020.0,0.02898]
[1756378193292,3.04525021,113030.0,113020.0,0.02898]
[1756378194189,3.04525021,113030.0,113020.0,0.001]
[1756378196701,3.04525021,113030.0,113020.0,0.02898]
[1756378201699,3.04525021,113030.0,113020.0,0.001]
[1756378212216,3.04525021,113030.0,113020.0,0.03042]
[1756378225436,3.04525021,113030.0,113020.0,0.001]
[1756378225825,3.04525021,113030.0,113010.0,0.02942]
[1756378226032,1.25420484,113020.0,113010.0,0.04569]
[1756378226231,1.73463965,113020.0,113010.0,0.04569]
[1756378226828,1.88153965,113020.0,113010.0,0.04569]
[1756378227029,1.73463965,113020.0,113010.0,0.04569]
[1756378228030,1.73663965,113020.0,113010.0,0.04669]
[1756378229939,1.73663965,113020.0,113010.0,0.06943]
[1756378231527,1.73663965,113020.0,113010.0,0.03042]
[1756378232239,1.73663965,113020.0,113010.0,0.04669]
[1756378236336,1.73663965,113020.0,113010.0,0.03042]
[1756378236838,1.88363965,113020.0,113010.0,0.03042]
[1756378237141,1.73663965,113020.0,113010.0,0.03042]
[1756378238938,1.73663965,113020.0,113010.0,0.06739]
[1756378239941,1.73663965,113020.0,113010.0,0.09928]
[1756378241445,1.73663965,113020.0,113010.0,0.06739]
[1756378245148,2.09743965,113020.0,113010.0,0.06739]
[1756378247449,2.09743965,113020.0,113010.0,0.04556]
[1756378247646,2.09743965,113020.0,113010.0,0.03042]
[1756378253351,1.26067481,113020.0,113010.0,0.08641]
[1756378253551,2.09743965,113020.0,113010.0,0.1183]
[1756378257158,2.24443965,113020.0,113010.0,0.1183]
[1756378257457,2.09743965,113020.0,113010.0,0.1183]
[1756378260256,2.09743965,113020.0,113010.0,0.08641]
[1756378260959,1.37583965,113020.0,113010.0,0.08641]
[1756378261259,2.09743965,113020.0,113010.0,0.08641]
[1756378263567,2.09743965,113020.0,113010.0,0.04556]
[1756378266066,2.09743965,113020.0,113010.0,0.03042]
[1756378267270,2.24443965,113020.0,113010.0,0.001]
[1756378267869,2.09743965,113020.0,113010.0,0.001]
[1756378268065,2.09743965,113020.0,113010.0,0.03071]
[1756378269469,2.09743965,113020.0,113010.0,0.001]
[1756378276375,2.09743965,113020.0,113010.0,0.03071]
[1756378276874,2.09743965,113020.0,113010.0,0.001]
[1756378288180,2.09743965,113020.0,113010.0,0.03071]
[1756378296485,2.09743965,113020.0,113010.0,0.001]
[1756378296690,2.09743965,113020.0,113010.0,0.03049]
[1756378300190,2.09743965,113020.0,113010.0,0.001]
[1756378304701,2.09743965,113020.0,113010.0,0.03049]
[1756378319613,2.09769198,113020.0,113010.0,0.03049]
[1756378322910,2.09769198,113020.0,113010.0,0.001]
[1756378327217,2.09727198,113020.0,113010.0,0.001]
[1756378329117,2.24427198,113020.0,113010.0,0.001]
[1756378330515,2.20577198,113020.0,113010.0,0.001]
[1756378330720,2.24427198,113020.0,113010.0,0.001]
[1756378335525,2.24431088,113020.0,113010.0,0.001]
[1756378336128,3.04591088,113020.0,113010.0,0.04556]
[1756378336326,3.04591088,113020.0,113010.0,0.12053]
[1756378338428,2.89891088,113020.0,113010.0,0.12053]
[1756378339026,2.89891088,113020.0,113010.0,0.08703]
[1756378340526,2.89891088,113020.0,113010.0,0.12053]
[1756378340720,1.26054604,113020.0,113010.0,0.3597]
[1756378340926,2.11048846,113020.0,113010.0,0.3932]
[1756378341527,1.69210604,113020.0,113010.0,0.4816819]
[1756378341727,2.08170846,113020.0,113010.0,0.90006432]
[1756378342338,2.08170846,113020.0,113010.0,0.4816819]
[1756378344333,1.28014846,113020.0,113010.0,0.4816819]
[1756378344521,2.08170846,113020.0,113010.0,0.4816819]
[1756378346025,1.66332604,113020.0,113010.0,0.4816819]
[1756378346222,1.72090846,113020.0,113010.0,0.4816819]
[1756378346422,1.75003846,113020.0,113010.0,0.90006432]
[1756378347430,1.33165604,113020.0,113010.0,0.90006432]
[1756378347730,1.75003846,113020.0,113010.0,0.90006432]
[1756378348133,1.75003846,113020.0,113010.0,0.4816819]
[1756378351731,1.77003846,113020.0,113010.0,0.4816819]
[1756378352129,1.35165604,113020.0,113010.0,0.4816819]
[1756378352328,1.77003846,113020.0,113010.0,0.4816819]
[1756378352722,0.96847846,113020.0,113010.0,0.4816819]
[1756378352928,2.06031846,113020.0,113010.0,0.4816819]
[1756378355436,1.64193604,113020.0,113010.0,0.4816819]
[1756378355735,2.06031846,113020.0,113010.0,0.4816819]
[1756378356238,1.69951846,113020.0,113010.0,0.4816819]
[1756378357238,2.06031846,113020.0,113010.0,0.4816819]
[1756378358436,1.64193604,113020.0,113010.0,0.4816819]
[1756378358643,2.06031846,113020.0,113010.0,0.4816819]
[1756378359137,0.06435604,113020.0,113010.0,2.03924674]
[1756378359343,0.002,113020.0,113010.0,2.30724674]
[1756378359545,1.09723,113040.0,113030.0,0.1436463]
[1756378359742,1.98651551,113040.0,113030.0,0.24901808]
[1756378360943,1.57213309,113040.0,113030.0,0.25001808]
[1756378361144,1.57413309,113040.0,113030.0,0.25001808]
[1756378362044,1.57213309,113040.0,113030.0,0.25001808]
[1756378362543,1.56813309,113040.0,113030.0,0.24901808]
[1756378362737,1.56913309,113040.0,113030.0,0.24901808]
[1756378364338,1.15075067,113040.0,113030.0,0.24901808]
[1756378364539,1.56913309,113040.0,113030.0,0.24901808]
[1756378364846,1.15075067,113040.0,113030.0,0.6674005]
[1756378365045,1.56913309,113040.0,113030.0,0.6674005]
[1756378366545,1.75045309,113040.0,113030.0,0.6674005]
[1756378367241,0.16743067,113040.0,113030.0,0.6674005]
[1756378367546,0.13963067,113040.0,113030.0,1.2474005]
[1756378368242,0.55801309,113040.0,113030.0,1.2474005]
[1756378368747,0.52474309,113040.0,113030.0,1.5154005]
[1756378369046,0.13963067,113040.0,113030.0,1.5154005]
[1756378369248,0.55801309,113040.0,113030.0,1.5154005]
[1756378369649,0.13963067,113040.0,113030.0,1.5164005]
[1756378370249,0.55801309,113040.0,113030.0,1.5164005]
[1756378370452,0.55801403,113040.0,113030.0,1.5164005]
[1756378370844,0.55701403,113040.0,113030.0,1.5174005]
[1756378371043,0.11391,113040.0,113030.0,1.5174005]
[1756378371243,0.08064,113040.0,113030.0,1.5174005]
[1756378371440,0.11391,113040.0,113030.0,1.5174005]
[1756378371852,0.09457,113040.0,113030.0,1.5174005]
[1756378372151,0.53767358,113040.0,113030.0,1.5174005]
[1756378373150,0.11929116,113040.0,113030.0,1.2674005]
[1756378373353,0.53767358,113040.0,113030.0,1.2674005]
[1756378375459,0.53767358,113040.0,113030.0,0.84901808]
[1756378375650,0.55701358,113040.0,113030.0,1.2674005]
[1756378376454,0.13863116,113040.0,113030.0,1.2674005]
[1756378376655,0.55701358,113040.0,113030.0,1.2674005]
[1756378377055,0.13863116,113040.0,113030.0,1.2674005]
[1756378377257,0.55701358,113040.0,113030.0,1.2674005]
[1756378377755,0.56590596,113040.0,113030.0,1.2674005]
[1756378380846,0.14752354,113040.0,113030.0,1.2674005]
[1756378381156,0.59370596,113040.0,113030.0,1.2674005]
[1756378381756,0.59370596,113040.0,113030.0,1.2664005]
[1756378381957,0.59470596,113040.0,113030.0,1.2654005]
[1756378382758,0.5699848,113040.0,113030.0,1.2654005]
[1756378383159,0.5699848,113040.0,113030.0,0.84701798]
[1756378383349,1.75389509,113040.0,113030.0,1.28944798]
[1756378383553,1.75389509,113040.0,113030.0,0.37232178]
[1756378383753,1.39389509,113040.0,113030.0,1.26494798]
[1756378383956,1.39389509,113040.0,113030.0,1.29655798]
[1756378384360,1.39389509,113040.0,113030.0,1.32117798]
[1756378385561,1.39389509,113040.0,113030.0,0.51701798]
[1756378386562,1.39389509,113040.0,113030.0,0.24901798]
[1756378390670,0.55713025,113040.0,113030.0,0.24901798]
[1756378390873,1.39389509,113040.0,113030.0,0.24901798]
[1756378392176,2.19777509,113040.0,113030.0,0.24901798]
[1756378393673,0.46716787,113040.0,113030.0,0.6674004]
[1756378393875,0.53317242,113040.0,113030.0,1.0374004]
[1756378394071,0.11479,113040.0,113030.0,1.0374004]
[1756378394380,0.01684,113040.0,113030.0,1.2874004]
[1756378396777,0.01684,113040.0,113030.0,1.35740666]
[1756378397178,0.01584,113040.0,113030.0,1.35740666]
[1756378397378,0.01584,113040.0,113030.0,1.2894004]
[1756378397880,0.9026087,113050.0,113040.0,0.14393]
[1756378398070,0.92727939,113050.0,113040.0,1.36579242]
[1756378398581,0.92727939,113050.0,113040.0,1.63379242]
[1756378399277,0.92727939,113050.0,113040.0,1.72225082]
[1756378400384,0.92827939,113050.0,113040.0,1.72225082]
[1756378401184,0.50989697,113050.0,113040.0,1.72225082]
[1756378401382,0.92827939,113050.0,113040.0,1.72225082]
[1756378404286,0.50989697,113050.0,113040.0,1.72225082]
[1756378404478,0.92827939,113050.0,113040.0,1.72225082]
[1756378404679,0.50989697,113050.0,113040.0,1.72225082]
[1756378404875,0.92827939,113050.0,113040.0,1.72225082]
[1756378405284,0.92827939,113050.0,113040.0,1.3038684]
[1756378405484,0.92827939,113050.0,113040.0,1.72225082]
[1756378406788,0.95710939,113050.0,113040.0,1.72225082]
[1756378407088,0.92827939,113050.0,113040.0,1.72225082]
[1756378408087,0.50989697,113050.0,113040.0,1.72225082]
[1756378408276,0.92827939,113050.0,113040.0,1.72225082]
[1756378410086,2.07827939,113050.0,113040.0,1.72225082]
[1756378414491,2.10710939,113050.0,113040.0,1.72225082]
[1756378416193,2.10710939,113050.0,113040.0,1.45425082]
[1756378418395,1.74630939,113050.0,113040.0,1.45425082]
[1756378419894,1.25700069,113050.0,113040.0,2.50884159]
[1756378420097,0.0175,113050.0,113040.0,3.11964159]
[1756378420392,0.0175,113050.0,113040.0,3.12849912]
[1756378420895,0.0175,113050.0,113040.0,3.11964159]
[1756378421796,0.001,113050.0,113040.0,3.12164159]
[1756378422297,1.68846294,113060.0,113050.0,0.1448307]
[1756378422595,1.74220252,113060.0,113050.0,0.65046312]
[1756378422890,1.74220252,113060.0,113050.0,0.66867147]
[1756378423096,1.3238201,113060.0,113050.0,0.66867147]
[1756378423291,1.74220252,113060.0,113050.0,0.66867147]
[1756378423597,1.74220252,113060.0,113050.0,0.66967147]
[1756378423996,1.74220252,113060.0,113050.0,0.25128905]
[1756378424290,1.74220252,113060.0,113050.0,0.66967147]
[1756378425998,1.74220252,113060.0,113050.0,0.67067147]
[1756378428098,1.74220252,113060.0,113050.0,0.93867147]
[1756378429602,1.3238201,113060.0,113050.0,0.93867147]
[1756378429802,1.74220252,113060.0,113050.0,1.29867147]
[1756378437208,1.3238201,113060.0,113050.0,1.29867147]
[1756378437408,1.74220252,113060.0,113050.0,1.29867147]
[1756378446912,1.3238201,113060.0,113050.0,1.29867147]
[1756378447113,1.74220252,113060.0,113050.0,1.29867147]
[1756378447413,1.3238201,113060.0,113050.0,1.29867147]
[1756378447709,1.74220252,113060.0,113050.0,1.29867147]
[1756378451820,0.59220252,113060.0,113050.0,1.29867147]
[1756378454424,0.59220252,113060.0,113050.0,0.88028905]
[1756378454625,0.59220252,113060.0,113050.0,1.29867147]
[1756378457724,0.59220252,113060.0,113050.0,0.88028905]
[1756378457926,0.59220252,113060.0,113050.0,1.29867147]
[1756378459331,0.59220252,113060.0,113050.0,0.88028905]
[1756378459732,0.59220252,113060.0,113050.0,1.29867147]
[1756378460633,0.59220252,113060.0,113050.0,0.88028905]
[1756378460834,0.59220252,113060.0,113050.0,1.29867147]
[1756378464935,0.1738201,113060.0,113050.0,1.29867147]
[1756378465139,0.56307252,113060.0,113050.0,1.29867147]
[1756378465438,0.1446901,113060.0,113050.0,1.29867147]
[1756378465638,0.56307252,113060.0,113050.0,1.29867147]
[1756378466133,0.1446901,113060.0,113050.0,1.29867147]
[1756378466339,0.1446901,113060.0,113050.0,1.65947147]
[1756378466539,0.56307252,113060.0,113050.0,1.65947147]
[1756378467940,1.71307252,113060.0,113050.0,1.65947147]
[1756378478050,1.2946901,113060.0,113050.0,1.65947147]
[1756378478252,1.71307252,113060.0,113050.0,1.65947147]
[1756378479653,1.71307252,113060.0,113050.0,2.46103147]
[1756378480750,1.25382958,113060.0,113050.0,2.48061935]
[1756378480953,0.47326,113070.0,113060.0,0.2319629]
[1756378481154,0.89164242,113070.0,113060.0,1.02034532]
[1756378481354,2.04164242,113070.0,113060.0,1.02034532]
[1756378481654,2.05048414,113070.0,113060.0,1.02034532]
[1756378481861,2.05048414,113070.0,113060.0,1.03855367]
[1756378482356,2.05048414,113070.0,113060.0,1.04055367]
[1756378482657,1.63210172,113070.0,113060.0,1.04055367]
[1756378482859,2.05048414,113070.0,113060.0,1.04055367]
[1756378483060,2.05148414,113070.0,113060.0,1.04055367]
[1756378484459,2.05148414,113070.0,113060.0,1.30855367]
[1756378486957,1.71529833,113070.0,113060.0,1.30855367]
[1756378487259,1.71981414,113070.0,113060.0,1.30855367]
[1756378488364,1.74442806,113070.0,113060.0,1.30855367]
[1756378490067,1.74442806,113070.0,113060.0,0.89017125]
[1756378490264,1.74442806,113070.0,113060.0,1.30855367]
[1756378492664,1.74442806,113070.0,113060.0,0.89017125]
[1756378492870,1.74442806,113070.0,113060.0,1.30855367]
[1756378498477,1.71981414,113070.0,113060.0,1.30855367]
[1756378499277,1.30143172,113070.0,113060.0,1.30855367]
[1756378499478,1.71981414,113070.0,113060.0,1.30855367]
[1756378507078,1.74447875,113070.0,113060.0,1.30855367]
[1756378508078,1.71981414,113070.0,113060.0,1.30855367]
[1756378508781,1.71981414,113070.0,113060.0,0.89017125]
[1756378508976,1.71981414,113070.0,113060.0,1.30855367]
[1756378509380,1.74447875,113070.0,113060.0,1.30855367]
[1756378512185,1.74447875,113070.0,113060.0,0.89017125]
[1756378512384,1.74447875,113070.0,113060.0,1.30855367]
[1756378513185,1.74268893,113070.0,113060.0,1.30855367]
[1756378514786,1.32430651,113070.0,113060.0,1.30855367]
[1756378514980,1.74268893,113070.0,113060.0,1.30855367]
[1756378517381,1.74268893,113070.0,113060.0,0.89017125]
[1756378517588,1.74268893,113070.0,113060.0,1.30855367]
[1756378518386,1.32430651,113070.0,113060.0,1.30855367]
[1756378518586,1.74268893,113070.0,113060.0,1.30855367]
[1756378522589,1.71802432,113070.0,113060.0,1.30855367]
[1756378523291,1.2996419,113070.0,113060.0,2.11133367]
[1756378523589,1.71802432,113070.0,113060.0,2.11133367]
[1756378525693,1.71802432,113070.0,113060.0,1.30929367]
[1756378525894,1.71802432,113070.0,113060.0,2.11133367]
[1756378527794,1.71802432,113070.0,113060.0,1.69295125]
[1756378527995,1.71802432,113070.0,113060.0,2.11133367]
[1756378532007,1.71802432,113070.0,113060.0,1.69295125]
[1756378532301,1.71802432,113070.0,113060.0,2.11133367]
[1756378532501,1.71802432,113070.0,113060.0,1.69295125]
[1756378532701,1.71802432,113070.0,113060.0,2.11133367]
[1756378535106,1.71802432,113070.0,113060.0,0.85771125]
[1756378535308,1.71802432,113070.0,113060.0,1.69445125]
[1756378536106,1.71802432,113070.0,113060.0,2.11283367]
[1756378536706,1.71802432,113070.0,113060.0,1.69445125]
[1756378537006,1.71802432,113070.0,113060.0,2.11283367]
[1756378537509,1.71802432,113070.0,113060.0,1.69445125]
[1756378537807,1.71802432,113070.0,113060.0,1.84483367]
[1756378538302,1.74269351,113070.0,113060.0,1.84483367]
[1756378538702,2.11269351,113070.0,113060.0,1.84483367]
[1756378539008,2.52187593,113070.0,113060.0,1.36665125]
[1756378539207,1.68511109,113070.0,113060.0,1.40159125]
[1756378539507,2.52187593,113070.0,113060.0,1.40159125]
[1756378539708,0.95349351,113070.0,113060.0,1.42535125]
[1756378541106,0.95349351,113070.0,113060.0,0.62355125]
[1756378541299,0.95349351,113070.0,113060.0,1.84405367]
[1756378544107,1.74665179,113070.0,113060.0,1.84405367]
[1756378544606,1.75541636,113070.0,113060.0,1.84405367]
[1756378545108,1.33703394,113070.0,113060.0,1.84405367]
[1756378545308,1.75541636,113070.0,113060.0,1.84405367]
[1756378547311,1.33703394,113070.0,113060.0,1.84405367]
[1756378547512,1.75541636,113070.0,113060.0,1.84405367]
[1756378548313,1.73074717,113070.0,113060.0,1.84405367]
[1756378550014,2.88074717,113070.0,113060.0,1.84405367]
[1756378550514,2.43323475,113070.0,113060.0,1.84405367]
[1756378550716,2.88074717,113070.0,113060.0,1.84405367]
[1756378550917,2.90541689,113070.0,113060.0,1.84405367]
[1756378551119,2.88074717,113070.0,113060.0,1.84405367]
[1756378552124,2.89665232,113070.0,113060.0,1.84405367]
[1756378552322,2.8719826,113070.0,113060.0,1.84405367]
[1756378552724,2.8719826,113070.0,113060.0,1.42567125]
[1756378552927,2.8428526,113070.0,113060.0,1.84405367]
[1756378553424,2.8113426,113070.0,113060.0,1.84405367]
[1756378553720,1.18751,113070.0,113060.0,2.11205367]
[1756378553931,0.001,113070.0,113060.0,3.14123609]
[1756378554131,0.01106,113080.0,113070.0,0.2322651]
[1756378554429,0.01106,113080.0,113070.0,2.15860641]
[1756378554929,0.01106,113080.0,113070.0,2.17681476]
[1756378555421,0.3608,113100.0,113080.0,0.0884247]
[1756378555730,0.80847242,113110.0,113100.0,0.2322416]
[1756378555731,0.11149,113110.0,113100.0,0.2322416]
[1756378555919,0.5545333,113110.0,113100.0,1.40963237]
[1756378556116,0.11149,113110.0,113100.0,1.40963237]
[1756378557120,0.52987242,113110.0,113100.0,1.40963237]
[1756378557321,0.53087242,113110.0,113100.0,1.41663237]
[1756378558325,0.55553278,113110.0,113100.0,1.41663237]
[1756378558528,1.70553278,113110.0,113100.0,1.41663237]
[1756378559029,1.73482278,113110.0,113100.0,1.41663237]
[1756378560726,1.31644036,113110.0,113100.0,1.41663237]
[1756378560933,1.73482278,113110.0,113100.0,1.41663237]
[1756378561822,1.31644036,113110.0,113100.0,1.41663237]
[1756378562125,0.16644036,113110.0,113100.0,1.41663237]
[1756378562332,0.06316036,113110.0,113100.0,1.41663237]
[1756378562828,0.09550036,113110.0,113100.0,1.41663237]
[1756378563129,0.11805036,113110.0,113100.0,1.41663237]
[1756378563329,0.53643278,113110.0,113100.0,1.41663237]
[1756378564132,0.51177242,113110.0,113100.0,1.41663237]
[1756378564428,0.09339,113110.0,113100.0,1.41663237]
[1756378564626,0.51177242,113110.0,113100.0,1.41663237]
[1756378564932,0.09339,113110.0,113100.0,1.41663237]
[1756378566526,0.51177242,113110.0,113100.0,1.41663237]
[1756378567130,0.04132941,113110.0,113100.0,1.41663237]
[1756378569736,0.04132941,113110.0,113100.0,1.39685237]
[1756378571334,0.02563941,113110.0,113100.0,2.61687479]
[1756378571635,0.43091372,113130.0,113120.0,0.14307]
[1756378571934,0.43091372,113130.0,113120.0,1.79969677]
[1756378571935,0.89654035,113130.0,113120.0,1.79969677]
[1756378572134,2.04654035,113130.0,113120.0,1.79969677]
[1756378573032,2.04654035,113130.0,113120.0,1.80069677]
[1756378573234,2.04654035,113130.0,113120.0,1.75509677]
[1756378573436,2.04654035,113130.0,113120.0,1.78246677]
[1756378573930,2.04654035,113130.0,113120.0,1.78146677]
[1756378574232,0.89754035,113130.0,113120.0,1.78546677]
[1756378574733,0.45452,113130.0,113120.0,1.78546677]
[1756378574935,0.3618,113130.0,113120.0,1.78546677]
[1756378575124,0.3618,113130.0,113120.0,2.05346677]
[1756378575330,0.001,113130.0,113120.0,2.66426677]
[1756378576942,0.001,113130.0,113120.0,2.66526677]
[1756378577438,0.001,113130.0,113120.0,2.61835008]
[1756378579637,0.84133573,113150.0,113140.0,0.1066104]
[1756378579833,0.52617421,113150.0,113140.0,1.4151304]
[1756378580035,2.04763994,113150.0,113140.0,1.43333875]
[1756378581340,2.04763994,113150.0,113140.0,1.43533875]
[1756378581541,1.67617421,113150.0,113140.0,1.43533875]
[1756378581843,2.04763994,113150.0,113140.0,1.43533875]
[1756378584841,1.67617421,113150.0,113140.0,1.43533875]
[1756378585043,2.04763994,113150.0,113140.0,1.43533875]
[1756378590751,1.67617421,113150.0,113140.0,1.43533875]
[1756378591842,2.04763994,113150.0,113140.0,1.43533875]
[1756378592037,1.67617421,113150.0,113140.0,1.43533875]
[1756378592338,2.04763994,113150.0,113140.0,1.43533875]
[1756378593749,2.04763994,113150.0,113140.0,1.31300835]
[1756378593949,2.06763994,113150.0,113140.0,1.21939835]
[1756378594157,2.35763994,113150.0,113140.0,0.41623835]
[1756378594453,2.35763994,113150.0,113140.0,0.54327835]
[1756378594654,2.35763994,113150.0,113140.0,0.18327835]
[1756378594853,2.35763994,113150.0,113140.0,0.45857835]
[1756378595151,2.35763994,113150.0,113140.0,0.54352875]
[1756378596052,1.67617421,113150.0,113140.0,0.54352875]
[1756378596254,2.04763994,113150.0,113140.0,0.50352875]
[1756378596944,2.04763994,113150.0,113140.0,0.30706875]
[1756378597146,2.04763994,113150.0,113140.0,0.63022875]
[1756378597454,2.04763994,113150.0,113140.0,0.60706875]
[1756378598554,2.04763994,113150.0,113140.0,0.63022875]
[1756378599445,2.09409409,113150.0,113140.0,0.63022875]
[1756378599743,2.09409409,113150.0,113140.0,0.60706875]
[1756378600747,2.09409409,113150.0,113140.0,0.63022875]
[1756378601956,1.67617421,113150.0,113140.0,0.63022875]
[1756378602155,2.09409409,113150.0,113140.0,0.63022875]
[1756378604454,0.94409409,113150.0,113140.0,0.63022875]
[1756378607957,0.52617421,113150.0,113140.0,0.63022875]
[1756378608356,0.94409409,113150.0,113140.0,0.63022875]
[1756378613760,0.52617421,113150.0,113140.0,1.06790015]
[1756378614061,0.91528409,113150.0,113140.0,1.06790015]
[1756378614561,0.94408409,113150.0,113140.0,0.64998027]
[1756378614761,0.94408409,113150.0,113140.0,1.06790015]
[1756378615861,0.52616421,113150.0,113140.0,1.06790015]
[1756378616062,0.94408409,113150.0,113140.0,0.64998027]
[1756378616262,0.94408409,113150.0,113140.0,1.06790015]
[1756378617962,0.94408409,113150.0,113140.0,0.64998027]
[1756378618263,0.94408409,113150.0,113140.0,1.06790015]
[1756378619764,0.94408409,113150.0,113140.0,0.64998027]
[1756378620464,0.52616421,113150.0,113140.0,0.64998027]
[1756378620664,0.94408409,113150.0,113140.0,0.64998027]
[1756378628359,0.52616421,113150.0,113140.0,0.64998027]
[1756378628668,0.94408409,113150.0,113140.0,0.64998027]
[1756378629667,0.52616421,113150.0,113140.0,0.64998027]
[1756378629871,0.94408409,113150.0,113140.0,0.64998027]
[1756378630372,0.52616421,113150.0,113140.0,0.64998027]
[1756378630560,0.94408409,113150.0,113140.0,0.64998027]
[1756378631175,0.94408409,113150.0,113140.0,0.64980027]
[1756378631466,0.90098409,113150.0,113140.0,0.64980027]
[1756378631672,0.87198409,113150.0,113140.0,0.64980027]
[1756378632672,0.45406421,113150.0,113140.0,0.64980027]
[1756378632873,0.87198409,113150.0,113140.0,0.64980027]
[1756378639472,0.45406421,113150.0,113140.0,0.64980027]
[1756378639675,0.87198409,113150.0,113140.0,0.64980027]
[1756378639876,0.89198409,113150.0,113140.0,0.64980027]
[1756378641774,0.87198409,113150.0,113140.0,0.64980027]
[1756378642577,0.87198409,113150.0,113140.0,0.49141987]
[1756378642778,0.87198409,113150.0,113140.0,0.57980087]
[1756378643378,0.45406421,113150.0,113140.0,0.57980087]
[1756378643671,0.87198409,113150.0,113140.0,0.57980087]
[1756378651682,0.89198409,113150.0,113140.0,0.57980087]
[1756378653384,0.87198409,113150.0,113140.0,0.57980087]
[1756378660188,0.8679598,113150.0,113140.0,0.57980087]
[1756378665691,0.45003992,113150.0,113140.0,0.57980087]
[1756378665892,0.8679598,113150.0,113140.0,0.57980087]
[1756378670393,0.8391598,113150.0,113140.0,0.57980087]
[1756378670594,0.8611798,113150.0,113140.0,0.57980087]
[1756378683499,0.44325992,113150.0,113140.0,0.57980087]
[1756378683707,0.8611798,113150.0,113140.0,0.57980087]
[1756378684202,0.83361409,113150.0,113140.0,0.57980087]
[1756378684401,0.02463421,113150.0,113140.0,0.99772075]
[1756378684605,0.02463421,113150.0,113140.0,1.24772075]
[1756378686005,0.02463421,113150.0,113140.0,1.51572075]
[1756378688104,0.02463421,113150.0,113140.0,1.87652075]
[1756378688310,0.02463421,113150.0,113140.0,1.62652075]
[1756378688508,1.93037988,113160.0,113150.0,0.173402]
[1756378688811,1.95366417,113160.0,113150.0,1.76796188]
[1756378689010,1.95200417,113160.0,113150.0,1.78617023]
[1756378689210,0.80366417,113160.0,113150.0,1.78617023]
[1756378689806,0.80466417,113160.0,113150.0,1.78717023]
[1756378690712,0.80466417,113160.0,113150.0,1.85935743]
[1756378691111,0.80466417,113160.0,113150.0,1.86806879]
[1756378693410,0.38508429,113160.0,113150.0,1.86806879]
[1756378693614,0.02428429,113160.0,113150.0,1.86806879]
[1756378693924,0.02428429,113160.0,113150.0,2.22015743]
[1756378695119,0.02428429,113160.0,113150.0,2.22913462]
[1756378695617,0.44220417,113160.0,113150.0,2.22913462]
[1756378695820,0.44220417,113160.0,113150.0,2.22015743]
[1756378696419,0.44220417,113160.0,113150.0,1.80223755]
[1756378696616,0.41891988,113160.0,113150.0,2.22015743]
[1756378696819,0.44220281,113160.0,113150.0,2.22015743]
[1756378698622,0.44386281,113160.0,113150.0,2.22015743]
[1756378699817,0.44386281,113160.0,113150.0,1.80223755]
[1756378700023,0.44386281,113160.0,113150.0,2.22015743]
[1756378701024,0.42057988,113160.0,113150.0,2.22015743]
[1756378701626,0.42057988,113160.0,113150.0,1.41871743]
[1756378701826,0.42057988,113160.0,113150.0,2.22007743]
[1756378702327,0.41891988,113160.0,113150.0,1.41871743]
[1756378702524,0.44220281,113160.0,113150.0,2.22003743]
[1756378704328,0.44220281,113160.0,113150.0,1.41871743]
[1756378704528,0.44220281,113160.0,113150.0,2.22003743]
[1756378704928,0.44220281,113160.0,113150.0,1.41871743]
[1756378705327,0.44220281,113160.0,113150.0,2.22003743]
[1756378705725,0.02428293,113160.0,113150.0,2.22003743]
[1756378705925,0.44220281,113160.0,113150.0,2.22003743]
[1756378708227,0.41891988,113160.0,113150.0,2.22003743]
[1756378711329,0.001,113160.0,113150.0,2.22003743]
[1756378711534,0.41891988,113160.0,113150.0,2.22003743]
[1756378711735,0.001,113160.0,113150.0,1.80211755]
[1756378711936,0.41891988,113160.0,113150.0,2.22003743]
[1756378712232,0.001,113160.0,113150.0,2.47003743]
[1756378712439,2.37822353,113180.0,113170.0,0.2285864]
[1756378712629,2.40416465,113180.0,113170.0,1.75778628]
[1756378712935,1.60276465,113180.0,113170.0,1.75778628]
[1756378713132,1.60276465,113180.0,113170.0,1.77599463]
[1756378713727,1.18484477,113180.0,113170.0,1.77599463]
[1756378713929,1.60276465,113180.0,113170.0,1.77599463]
[1756378714331,1.60576465,113180.0,113170.0,1.77599463]
[1756378714532,1.60576465,113180.0,113170.0,1.35807475]
[1756378714732,1.60876465,113180.0,113170.0,1.77599463]
[1756378717840,1.599861,113180.0,113170.0,1.77599463]
[1756378718742,1.599861,113180.0,113170.0,1.79592864]
[1756378721842,1.599861,113180.0,113170.0,1.79573756]
[1756378724334,1.17928112,113180.0,113170.0,1.79573756]
[1756378724535,1.597201,113180.0,113170.0,1.79573756]
[1756378725244,0.02928112,113180.0,113170.0,2.15653756]
[1756378725546,0.447201,113180.0,113170.0,2.15653756]
[1756378725747,0.441201,113180.0,113170.0,2.15653756]
[1756378725951,0.02628112,113180.0,113170.0,2.15653756]
[1756378727546,0.02628112,113180.0,113170.0,2.42453756]
[1756378728551,0.003,113180.0,113170.0,2.42453756]
[1756378729143,0.42091988,113180.0,113170.0,2.42453756]
[1756378729543,0.42357988,113180.0,113170.0,2.15653756]
[1756378730048,0.42357988,113180.0,113170.0,2.16543942]
[1756378731543,0.00566,113180.0,113170.0,2.16543942]
[1756378732048,0.42357988,113180.0,113170.0,2.16543942]
[1756378734148,0.42357988,113180.0,113170.0,2.15653756]
[1756378734951,0.00566,113180.0,113170.0,2.15653756]
[1756378735150,0.42357988,113180.0,113170.0,2.15653756]
[1756378737753,0.44681662,113180.0,113170.0,2.15653756]
[1756378738756,0.42357988,113180.0,113170.0,2.15653756]
[1756378740254,0.42357988,113180.0,113170.0,1.73861768]
[1756378740454,0.42357988,113180.0,113170.0,2.15653756]
[1756378741357,0.42091988,113180.0,113170.0,2.15653756]
[1756378742354,0.42091988,113180.0,113170.0,2.42453756]
[1756378742752,0.42091988,113180.0,113170.0,1.62325756]
[1756378742953,0.42357988,113180.0,113170.0,2.42433756]